fUSD/lending_fUSD_20260130
["ID","MTS","AMOUNT","RATE_DAILY","PERIOD"]
[404072576,1769785848066,-1003.8458017,0.00019068,2]
[404072577,1769785848076,-1500.0,0.00019068,2]
[404072578,1769785848087,-1004.70133211,0.00019068,2]
[404072579,1769785848099,-1500.0,0.00019068,2]
[404072580,1769785848109,-1503.47344259,0.00019068,2]
[404072581,1769785848120,-1500.0,0.00019068,2]
[404072582,1769785848130,-1500.0,0.00019068,2]
[404072583,1769785848139,-643.5873001,0.00019068,2]
[404072584,1769785848149,-1500.0,0.00019068,2]
[404072585,1769785848159,-1500.0,0.00019068,2]
[404072586,1769785848171,-1500.0,0.00019068,2]
[404072587,1769785848182,-907.59711898,0.00019068,2]
[404072588,1769785848192,-1500.0,0.00019068,2]
[404072589,1769785848202,-1500.0,0.00019068,2]
[404072590,1769785848212,-1500.0,0.00019068,2]
[404072591,1769785848222,-1500.0,0.00019068,2]
[404072592,1769785848232,-2694.0,0.00019072,2]
[404072593,1769785848242,-806.5,0.00019077,2]
[404072594,1769785848253,-2694.0,0.00019089,2]
[404072595,1769785848263,-4609.0,0.00019172,2]
[404072596,1769785848274,-2011.85999459,0.00019178,12]
[404072597,1769785848285,-500.0,0.00019178,2]
[404072598,1769785848296,-500.0,0.00019178,2]
[404072599,1769785848306,-500.0,0.00019178,2]
[404072600,1769785848315,-500.0,0.00019178,2]
[404072601,1769785848325,-500.0,0.00019178,2]
[404072602,1769785848335,-500.0,0.00019178,2]
[404072603,1769785848346,-500.0,0.00019178,2]
[404072604,1769785848356,-500.0,0.00019178,2]
[404072605,1769785848366,-500.0,0.00019178,2]
[404072606,1769785848377,-574.23070973,0.00019178,2]
[404072607,1769785848388,-500.0,0.00019178,2]
[404072608,1769785848397,-500.0,0.00019178,2]
[404072609,1769785848407,-500.0,0.00019178,2]
[404072610,1769785848419,-150.19060405,0.00019178,2]
[404072611,1769785848428,-160.81086375,0.00019178,2]
[404072612,1769785848440,-15322.16997128,0.00019554,2]
[404072613,1769785848450,-196.88,0.0001957,2]
[404072614,1769785848461,-394.65701535,0.00019616,2]
[404072615,1769785848471,-2000.0,0.00019616,2]
[404072616,1769785848481,-2000.0,0.00019616,2]
[404072617,1769785848493,-2000.0,0.00019616,2]
[404072618,1769785848502,-2000.0,0.00019616,2]
[404072619,1769785848513,-2000.0,0.00019616,2]
[404072620,1769785848523,-676.76997938,0.00019616,2]
[404072621,1769785848533,-802.6302377,0.00019616,2]
[404072622,1769785848543,-2067.46525719,0.00019616,2]
[404072623,1769785848553,-2000.0,0.00019616,2]
[404072624,1769785848565,-2000.0,0.00019616,2]
[404072625,1769785848575,-2000.0,0.00019616,2]
[404072626,1769785848585,-2000.0,0.00019616,2]
[404072627,1769785848595,-2000.0,0.00019616,2]
[404072628,1769785848605,-789.92758812,0.00019616,2]
[404072629,1769785848615,-1004.70692071,0.00019616,2]
[404072630,1769785848625,-2000.0,0.00019616,2]
[404072631,1769785848635,-2004.44245544,0.00019616,2]
[404072632,1769785848645,-2000.0,0.00019616,2]
[404072633,1769785848655,-2000.0,0.00019616,2]
[404072634,1769785848665,-2000.0,0.00019616,2]
[404072635,1769785848675,-1483.0,0.00019695,2]
[404072636,1769785848688,-2000.0,0.000197,2]
[404072637,1769785848698,-1000.0,0.000197,2]
[404072638,1769785848707,-668.91911107,0.00019723,2]
[404072639,1769785848717,-353.41,0.00019725,2]
[404072640,1769785848727,-205.0,0.0001975,2]
[404072641,1769785848737,-237.0,0.00019927,2]
[404072642,1769785848747,-200.0,0.0002,2]
[404072643,1769785848756,-1000.0,0.0002,7]
[404072644,1769785848766,-500.0,0.00020137,2]
[404072645,1769785848776,-500.0,0.00020219,2]
[404072646,1769785848785,-4786.50129124,0.00020249,7]
[404072647,1769785848795,-806.5,0.00020396,2]
[404072648,1769785848804,-158.77663044,0.00020405,2]
[404072649,1769785848815,-479.1,0.00020477,2]
[404072650,1769785848825,-250.0,0.00020577,2]
[404072651,1769785848834,-322.6107,0.00020577,2]
[404072652,1769785848844,-854.2589148,0.00020577,2]
[404072653,1769785848853,-209.40437684,0.00020577,2]
[404072654,1769785848863,-217.15233878,0.00020632,2]
[404072655,1769785848872,-225.18697532,0.00020687,2]
[404072656,1769785848882,-233.51889341,0.00020742,2]
[404072657,1769785848891,-1613.0,0.00020762,2]
[404072658,1769785848901,-242.15909246,0.00020797,2]
[404072659,1769785848910,-251.11897888,0.00020852,2]
[404072660,1769785848920,-15322.16997128,0.00020866,2]
[404072661,1769785848929,-260.4103811,0.00020907,2]
[404072662,1769785848940,-1204.0,0.00020914,2]
[404072663,1769785848949,-916.0,0.00020914,2]
[404072664,1769785848959,-5933.0,0.00020914,2]
[404072665,1769785848968,-2444.0,0.00020914,2]
[404072666,1769785848978,-25000.0,0.00020936,3]
[404072667,1769785848988,-25000.0,0.00020945,3]
[404072668,1769785848999,-25000.0,0.00020954,3]
[404072669,1769785849009,-351.45162062,0.00020958,2]
[404072670,1769785849019,-270.0455652,0.00020962,2]
[404072671,1769785849028,-25000.0,0.00020962,3]
[404072672,1769785849038,-700.0,0.0002097,2]
[404072673,1769785849047,-25000.0,0.00020971,3]
[404072674,1769785849057,-25000.0,0.0002098,3]
[404072675,1769785849067,-25000.0,0.00020989,3]
[404072676,1769785849076,-25000.0,0.00020998,3]
[404072677,1769785849085,-237.12,0.00021,7]
[404072678,1769785849095,-25000.0,0.00021006,3]
[404072679,1769785849105,-25000.0,0.00021015,3]
[404072680,1769785849115,-280.03725112,0.00021017,2]
[404072681,1769785849124,-25000.0,0.00021024,3]
[404072682,1769785849134,-25000.0,0.00021033,3]
[404072683,1769785849144,-25000.0,0.00021042,3]
[404072684,1769785849154,-25000.0,0.0002105,3]
[404072685,1769785849164,-25000.0,0.00021059,3]
[404072686,1769785849173,-25000.0,0.00021068,3]
[404072687,1769785849185,-290.39862941,0.00021072,2]
[404072688,1769785849196,-6453.0,0.0002109,2]
[404072689,1769785849206,-885.86649465,0.00021125,2]
[404072690,1769785849215,-301.1433787,0.00021127,2]
[404072691,1769785849225,-150.0,0.00021158,2]
[404072692,1769785849235,-150.0,0.00021158,2]
[404072693,1769785849244,-607.136,0.00021158,2]
[404072694,1769785849254,-1774.63404526,0.00021541,2]
[404072695,1769785849264,-918.64355495,0.00021673,2]
[404072696,1769785849273,-806.5,0.00021715,2]
[404072697,1769785849282,-196.88,0.0002184,2]
[404072698,1769785849291,-353.41,0.00021917,2]
[404072699,1769785849302,-381.94659515,0.00021946,2]
[404072700,1769785849311,-2455.7,0.00022,7]
[404072701,1769785849321,-4975.68,0.00022,2]
[404072702,1769785849333,-150.0,0.00022173,2]
[404072703,1769785849343,-15322.16997128,0.00022177,2]
[404072704,1769785849353,-500.0,0.00022192,2]
[404072705,1769785849364,-952.63336648,0.00022221,2]
[404072706,1769785849377,-6476.3028,0.00022249,7]
[404072707,1769785849462,-2747.0,0.0002253,2]
[404072708,1769785849472,-319.4,0.0002255,2]
[404072709,1769785849482,-302.16524512,0.0002263,2]
[404072710,1769785849493,-383.57171403,0.0002263,2]
[404072711,1769785849504,-167.86958062,0.00022685,2]
[404072712,1769785849514,-232.8337377,0.00022685,2]
[404072713,1769785849524,-779.37052,0.000227,2]
[404072714,1769785849535,-250.0,0.00022721,2]
[404072715,1769785849544,-2258.0,0.00022767,2]
[404072716,1769785849555,-987.88080104,0.00022769,2]
[404072717,1769785849565,-319.4,0.0002285,2]
[404072718,1769785849575,-1000.0,0.00022862,2]
[404072719,1769785849593,-11241.7,0.00022956,2]
[404072720,1769785849604,-806.5,0.00023035,2]
[404072721,1769785849614,-1000.0,0.00023136,2]
[404072722,1769785849623,-319.4,0.0002315,2]
[404072723,1769785849633,-757.6087095,0.00023189,2]
[404072724,1769785849643,-9035.0,0.00023199,2]
[404072725,1769785849652,-500.0,0.00023235,2]
[404072726,1769785849662,-530.17,0.00023235,2]
[404072727,1769785849672,-10000.0,0.00023235,2]
[404072728,1769785849681,-350.0,0.00023268,2]
[404072729,1769785849692,-150.0,0.00023288,2]
[404072730,1769785849701,-150.0,0.00023288,2]
[404072731,1769785849710,-500.0,0.00023288,2]
[404072732,1769785849720,-150.0,0.00023288,2]
[404072733,1769785849730,-500.0,0.00023288,2]
[404072734,1769785849739,-500.0,0.00023288,2]
[404072735,1769785849750,-150.0,0.00023288,2]
[404072736,1769785849759,-158.77663044,0.0002332,2]
[404072737,1769785849769,-500.0,0.00023334,2]
[404072738,1769785849778,-530.17,0.00023334,2]
[404072739,1769785849788,-15316.0277313,0.00023335,2]
[404072740,1769785849798,-256612.4410324,0.00023335,2]
[404072741,1769785849809,-500.80530766,0.00023343,2]
[404072742,1769785849819,-500.0,0.00023343,2]
[404072743,1769785849830,-500.0,0.00023343,2]
[404072744,1769785849840,-150.0,0.00023398,2]
[404072745,1769785849850,-500.0,0.00023398,2]
[404072746,1769785849861,-2000.0,0.000234,2]
[404072747,1769785849871,-1000.0,0.000234,2]
[404072748,1769785849880,-1000.0,0.0002341,2]
[404072749,1769785849890,-109605.83836455,0.0002345,2]
[404072750,1769785849899,-500.0,0.00023452,2]
[404072751,1769785849909,-15322.16997128,0.00023489,2]
[404072752,1769785849918,-500.0,0.00023507,2]
[404072753,1769785849928,-500.0,0.00023562,2]
[404072754,1769785849939,-500.0,0.00023617,2]
[404072755,1769785849949,-300.0,0.00023672,2]
[404072756,1769785849962,-1502.0,0.00023677,2]
[404072757,1769785849972,-1502.0,0.00023677,2]
[404072758,1769785849982,-1502.0,0.00023677,2]
[404072759,1769785849991,-1502.0,0.00023677,2]
[404072760,1769785850001,-1502.0,0.00023677,2]
[404072761,1769785850010,-1502.0,0.00023677,2]
[404072762,1769785850020,-1502.0,0.00023677,2]
[404072763,1769785850029,-1502.0,0.00023677,2]
[404072764,1769785850038,-1502.0,0.00023677,2]
[404072765,1769785850048,-1502.0,0.00023677,2]
[404072766,1769785850057,-1502.0,0.00023677,2]
[404072767,1769785850066,-1502.0,0.00023677,2]
[404072768,1769785850075,-1502.0,0.00023677,2]
[404072769,1769785850085,-1502.0,0.00023677,2]
[404072770,1769785850094,-1502.0,0.00023677,2]
[404072771,1769785850103,-1502.0,0.00023677,2]
[404072772,1769785850112,-1502.0,0.00023677,2]
[404072773,1769785850122,-1502.0,0.00023677,2]
[404072774,1769785850131,-1502.0,0.00023677,2]
[404072775,1769785850141,-1502.0,0.00023677,2]
[404072776,1769785850150,-1502.0,0.00023677,2]
[404072777,1769785850160,-1502.0,0.00023677,2]
[404072778,1769785850170,-1502.0,0.00023677,2]
[404072779,1769785850179,-1502.0,0.00023677,2]
[404072780,1769785850191,-1502.0,0.00023677,2]
[404072781,1769785850200,-1502.0,0.00023677,2]
[404072782,1769785850210,-1502.0,0.00023677,2]
[404072783,1769785850219,-1502.0,0.00023677,2]
[404072784,1769785850229,-1502.0,0.00023677,2]
[404072785,1769785850239,-1502.0,0.00023677,2]
[404072786,1769785850248,-1502.0,0.00023677,2]
[404072787,1769785850258,-1502.0,0.00023677,2]
[404072788,1769785850267,-1502.0,0.00023677,2]
[404072789,1769785850277,-1502.0,0.00023677,2]
[404072790,1769785850286,-1502.0,0.00023677,2]
[404072791,1769785850296,-1502.0,0.00023677,2]
[404072792,1769785850305,-1502.0,0.00023677,2]
[404072793,1769785850315,-1502.0,0.00023677,2]
[404072794,1769785850324,-1502.0,0.00023677,2]
[404072795,1769785850333,-1502.0,0.00023677,2]
[404072796,1769785850343,-1502.0,0.00023677,2]
[404072797,1769785850353,-1502.0,0.00023677,2]
[404072798,1769785850363,-1502.0,0.00023677,2]
[404072799,1769785850372,-151.0,0.00023677,2]
[404072800,1769785850383,-151.0,0.00023677,2]
[404072801,1769785850392,-1502.0,0.00023677,2]
[404072802,1769785850401,-1502.0,0.00023677,2]
[404072803,1769785850412,-1502.0,0.00023677,2]
[404072804,1769785850434,-1502.0,0.00023677,2]
[404072805,1769785850458,-450.0,0.00023816,2]
[404072806,1769785850478,-2455.7,0.000239,7]
[404072807,1769785850490,-4975.68,0.000239,2]
[404072808,1769785850502,-1204.0,0.00023914,2]
[404072809,1769785850514,-916.0,0.00023914,2]
[404072810,1769785850525,-5933.0,0.00023914,2]
[404072811,1769785850535,-2444.0,0.00023914,2]
[404072812,1769785850546,-35744.0,0.00023958,2]
[404072813,1769785850556,-324.83,0.00024109,2]
[404072814,1769785850565,-324.83,0.00024109,3]
[404072815,1769785850575,-324.83,0.00024109,4]
[404072816,1769785850585,-324.83,0.00024109,5]
[404072817,1769785850594,-324.83,0.00024109,6]
[404072818,1769785850604,-324.83,0.00024109,7]
[404072819,1769785850614,-324.83,0.00024109,8]
[404072820,1769785850623,-324.83,0.00024109,9]
[404072821,1769785850633,-324.83,0.00024109,10]
[404072822,1769785850643,-324.83,0.00024109,11]
[404072823,1769785850653,-324.83,0.00024109,12]
[404072824,1769785850663,-324.83,0.00024109,13]
[404072825,1769785850672,-324.83,0.00024109,14]
[404072826,1769785850682,-324.83,0.00024109,15]
[404072827,1769785850695,-324.83,0.00024109,16]
[404072828,1769785850705,-324.83,0.00024109,17]
[404072829,1769785850715,-324.83,0.00024109,18]
[404072830,1769785850724,-324.83,0.00024109,19]
[404072831,1769785850733,-324.83,0.00024109,20]
[404072832,1769785850743,-324.83,0.00024109,21]
[404072833,1769785850753,-324.83,0.00024109,21]
[404072834,1769785850763,-324.83,0.00024109,21]
[404072835,1769785850772,-324.83,0.00024109,21]
[404072836,1769785850782,-324.86450809,0.00024109,21]
[404072837,1769785850791,-196.34,0.00024244,2]
[404072838,1769785850800,-164.06,0.00024339,2]
[404072839,1769785850810,-806.5,0.00024354,2]
[404072840,1769785850820,-580.41046824,0.00024364,2]
[404072841,1769785850829,-196.34,0.00024379,2]
[404072842,1769785850839,-196.33300498,0.00024515,2]
[404072843,1769785850848,-164.06,0.00024569,2]
[404072844,1769785850857,-167.7871695,0.0002465,2]
[404072845,1769785850866,-159.0,0.00024658,2]
[404072846,1769785850877,-159.0,0.00024658,2]
[404072847,1769785850886,-159.0,0.00024658,2]
[404072848,1769785850896,-159.0,0.00024658,2]
[404072849,1769785850906,-159.0,0.00024658,2]
[404072850,1769785850916,-159.26689164,0.00024658,2]
[404072851,1769785850925,-159.0,0.00024658,2]
[404072852,1769785850936,-1225.7,0.00024658,2]
[404072853,1769785850946,-1000.0,0.00024658,2]
[404072854,1769785850956,-150.0,0.00024658,2]
[404072855,1769785850966,-150.0,0.00024799,2]
[404072856,1769785850976,-173.99288078,0.00024799,2]
[404072857,1769785850987,-502.69395477,0.00024799,2]
[404072858,1769785850996,-500.0,0.00024799,2]
[404072859,1769785851006,-500.0,0.00024799,2]
[404072860,1769785851017,-500.0,0.00024799,2]
[404072861,1769785851031,-530.17,0.00024799,2]
[404072862,1769785851044,-530.17,0.00024799,2]
[404072863,1769785851053,-530.17,0.00024799,2]
[404072864,1769785851064,-15322.16997128,0.000248,2]
[404072865,1769785851074,-36655.2475632,0.000248,2]
[404072866,1769785851084,-300.0,0.00024899,10]
[404072867,1769785851095,-666.0,0.00024899,2]
[404072868,1769785851105,-300.0,0.00024899,10]
[404072869,1769785851116,-151.0,0.000249,7]
[404072870,1769785851126,-151.0,0.000249,7]
[404072871,1769785851135,-170.231382,0.000249,7]
[404072872,1769785851145,-3034.744652,0.000249,7]
[404072873,1769785851154,-3034.744652,0.000249,7]
[404072874,1769785851163,-3034.744652,0.000249,7]
[404072875,1769785851172,-3034.744652,0.000249,7]
[404072876,1769785851182,-151.0,0.000249,7]
[404072877,1769785851194,-604792.698038,0.000249,2]
[404072878,1769785851203,-151.0,0.000249,7]
[404072879,1769785851212,-151.0,0.000249,7]
[404072880,1769785851222,-3162.0,0.00024965,2]
[404072881,1769785851231,-300.0,0.00024999,10]
[404072882,1769785851240,-666.0,0.00024999,2]
[404072883,1769785851250,-1112.70082201,0.00025,2]
[404072884,1769785851259,-207.29740634,0.00025,2]
[404072885,1769785851268,-1782.91230803,0.00025,2]
[404072886,1769785851277,-493.3002491,0.00025,2]
[404072887,1769785851287,-540.0,0.00025,2]
[404072888,1769785851297,-610.27607339,0.00025,2]
[404072889,1769785851306,-3041.16125772,0.00025,2]
[404072890,1769785851315,-7118.20642502,0.00025,2]
[404072891,1769785851324,-1063.50438022,0.00025,2]
[404072892,1769785851335,-167.15059606,0.00025,2]
[404072893,1769785851344,-450.0,0.00025,2]
[404072894,1769785851354,-179.65826196,0.00025,2]
[404072895,1769785851363,-300.0,0.00025389,10]
[404072896,1769785851373,-714.96434436,0.00025389,2]
[404072897,1769785851382,-500.0,0.00025389,2]
[404072898,1769785851392,-500.0,0.00025389,2]
[404072899,1769785851403,-500.0,0.00025389,2]
[404072900,1769785851413,-563.2740213,0.00025389,2]
[404072901,1769785851427,-530.17,0.00025389,2]
[404072902,1769785851436,-530.17,0.00025389,2]
[404072903,1769785851451,-530.17,0.00025389,2]
[404072904,1769785851463,-530.17,0.00025389,2]
[404072905,1769785851472,-530.19392643,0.00025389,2]
[404072906,1769785851482,-49477.33136296,0.0002539,2]
[404072907,1769785851494,-150.0,0.00025395,5]
[404072908,1769785851503,-150.72769008,0.00025395,5]
[404072909,1769785851512,-300.0,0.00025503,10]
[404072910,1769785851522,-12649.0,0.00025518,2]
[404072911,1769785851532,-300.0,0.00025519,10]
[404072912,1769785851542,-806.5,0.00025673,2]
[404072913,1769785851552,-1774.63404526,0.00025813,2]
[404072914,1769785851562,-300.0,0.00025823,10]
[404072915,1769785851571,-300.0,0.00025823,10]
[404072916,1769785851581,-256612.4410324,0.00025824,2]
[404072917,1769785851590,-151.0,0.00025824,7]
[404072918,1769785851599,-151.0,0.00025824,7]
[404072919,1769785851609,-151.0,0.00025824,7]
[404072920,1769785851618,-151.0,0.00025824,7]
[404072921,1769785851629,-243.60744,0.00025824,7]
[404072922,1769785851638,-2301.74853,0.00025824,7]
[404072923,1769785851648,-2301.74853,0.00025824,7]
[404072924,1769785851659,-2301.74853,0.00025824,7]
[404072925,1769785851668,-2301.74853,0.00025824,7]
[404072926,1769785851678,-151.0,0.00025824,7]
[404072927,1769785851687,-600.27804808,0.0002599,2]
[404072928,1769785851700,-1999.98210475,0.0002599,7]
[404072929,1769785851710,-4518.14374436,0.00026,2]
[404072930,1769785851719,-216.26189532,0.00026,2]
[404072931,1769785851729,-374.60505286,0.00026095,2]
[404072932,1769785851738,-158.77663046,0.00026235,2]
[404072933,1769785851748,-4290.61608161,0.000263,2]
[404072934,1769785851758,-2455.7,0.000263,7]
[404072935,1769785851768,-4975.68,0.000263,2]
[404072936,1769785851777,-428.89752222,0.00026399,10]
[404072937,1769785851787,-27446.55916323,0.000264,2]
[404072938,1769785851796,-668.91911107,0.00026449,2]
[404072939,1769785851805,-1204.0,0.00026914,2]
[404072940,1769785851815,-916.0,0.00026914,2]
[404072941,1769785851825,-5933.0,0.00026914,2]
[404072942,1769785851834,-2444.0,0.00026914,2]
[404072943,1769785851843,-806.5,0.00026992,2]
[404072944,1769785851852,-250.0,0.00027,2]
[404072945,1769785851862,-1033.5047427,0.00027,2]
[404072946,1769785851871,-530.0,0.00027,2]
[404072947,1769785851880,-500.0,0.00027,2]
[404072948,1769785851889,-1794.58131,0.00027,2]
[404072949,1769785851898,-502.0,0.00027014,2]
[404072950,1769785851908,-5013.01246435,0.00027091,2]
[404072951,1769785851917,-5000.0,0.00027091,2]
[404072952,1769785851928,-5000.0,0.00027091,2]
[404072953,1769785851937,-5000.0,0.00027091,2]
[404072954,1769785851948,-5000.0,0.00027091,2]
[404072955,1769785851957,-2000.0,0.000271,2]
[404072956,1769785851968,-3684.74,0.00027123,2]
[404072957,1769785851978,-150.0,0.00027123,2]
[404072958,1769785851989,-150.0,0.00027369,2]
[404072959,1769785852001,-594.0,0.0002737,2]
[404072960,1769785852012,-3350.0,0.00027376,2]
[404072961,1769785852022,-4107.91923262,0.0002739,2]
[404072962,1769785852034,-8114.21042219,0.0002739,2]
[404072963,1769785852046,-383.0,0.00027397,2]
[404072964,1769785852058,-383.0,0.00027397,2]
[404072965,1769785852069,-383.0,0.00027397,2]
[404072966,1769785852081,-383.0,0.00027397,2]
[404072967,1769785852091,-383.0,0.00027397,2]
[404072968,1769785852100,-383.0,0.00027397,2]
[404072969,1769785852112,-383.0,0.00027397,2]
[404072970,1769785852122,-383.0,0.00027397,2]
[404072971,1769785852137,-383.0,0.00027397,2]
[404072972,1769785852147,-383.0,0.00027397,2]
[404072973,1769785852156,-383.0,0.00027397,2]
[404072974,1769785852165,-383.0,0.00027397,2]
[404072975,1769785852175,-383.0,0.00027397,2]
[404072976,1769785852184,-383.0,0.00027397,2]
[404072977,1769785852194,-383.0,0.00027397,2]
[404072978,1769785852203,-383.0,0.00027397,2]
[404072979,1769785852213,-383.0,0.00027397,2]
[404072980,1769785852222,-383.0,0.00027397,2]
[404072981,1769785852232,-383.0,0.00027397,2]
[404072982,1769785852242,-383.0,0.00027397,2]
[404072983,1769785852252,-383.0,0.00027397,2]
[404072984,1769785852262,-383.0,0.00027397,2]
[404072985,1769785852272,-383.0,0.00027397,2]
[404072986,1769785852282,-383.0,0.00027397,2]
[404072987,1769785852292,-383.0,0.00027397,2]
[404072988,1769785852303,-383.0,0.00027397,2]
[404072989,1769785852312,-383.0,0.00027397,2]
[404072990,1769785852322,-413.11482352,0.00027397,2]
[404072991,1769785852331,-383.0,0.00027397,2]
[404072992,1769785852340,-1225.7,0.00027397,2]
[404072993,1769785852350,-1446.49,0.00027397,2]
[404072994,1769785852359,-300.0,0.00027397,2]
[404072995,1769785852368,-518.99,0.00027397,2]
[404072996,1769785852378,-509.06,0.00027397,30]
[404072997,1769785852387,-750.0,0.00027397,20]
[404072998,1769785852396,-166.688334,0.00027397,7]
[404072999,1769785852406,-330.012525,0.00027397,7]
[404073000,1769785852418,-330.012525,0.00027397,7]
[404073001,1769785852428,-330.012525,0.00027397,7]
[404073002,1769785852437,-330.012525,0.00027397,7]
[404073003,1769785852449,-151.79426036,0.00027397,5]
[404073004,1769785852459,-3417.4677205,0.00027453,2]
[404073005,1769785852468,-3346.76286587,0.00027557,2]
[404073006,1769785852477,-711.37,0.000278,14]
[404073007,1769785852488,-300.0,0.00027999,10]
[404073008,1769785852497,-71271.86194094,0.00028,2]
[404073009,1769785852507,-50822.12411821,0.00028,2]
[404073010,1769785852516,-160.0,0.00028,2]
[404073011,1769785852526,-833.0,0.00028,2]
[404073012,1769785852535,-151.0,0.00028,7]
[404073013,1769785852545,-151.0,0.00028,7]
[404073014,1769785852554,-286.221529,0.00028,7]
[404073015,1769785852564,-286.221529,0.00028,7]
[404073016,1769785852573,-286.221529,0.00028,7]
[404073017,1769785852582,-13839.0,0.0002807,2]
[404073018,1769785852592,-358.29251856,0.00028071,10]
[404073019,1769785852602,-2455.7,0.000281,7]
[404073020,1769785852611,-4975.68,0.000281,2]
[404073021,1769785852621,-757.6087095,0.00028285,2]
[404073022,1769785852630,-351.45162062,0.00028302,2]
[404073023,1769785852640,-806.5,0.00028312,2]
[404073024,1769785852649,-8069.82986769,0.00028312,2]
[404073025,1769785852658,-256612.4410324,0.00028312,2]
[404073026,1769785852668,-181.20958829,0.00028356,2]
[404073027,1769785852677,-762.5401197,0.00028372,2]
[404073028,1769785852690,-180.16,0.00028482,2]
[404073029,1769785852700,-165.61,0.00028493,2]
[404073030,1769785852710,-213.3247781,0.00028767,2]
[404073031,1769785852719,-501.98745934,0.00029,2]
[404073032,1769785852729,-550.0,0.00029,2]
[404073033,1769785852738,-417.0,0.00029,2]
[404073034,1769785852747,-416.0,0.00029,2]
[404073035,1769785852757,-1000.0,0.000294,30]
[404073036,1769785852766,-583.855,0.000294,90]
[404073037,1769785852777,-200.0,0.00029541,2]
[404073038,1769785852787,-200.0,0.00029577,2]
[404073039,1769785852796,-150.0,0.00029589,2]
[404073040,1769785852805,-806.5,0.00029631,2]
[404073041,1769785852814,-1204.0,0.00029914,2]
[404073042,1769785852824,-916.0,0.00029914,2]
[404073043,1769785852833,-5933.0,0.00029914,2]
[404073044,1769785852842,-2444.0,0.00029914,2]
[404073045,1769785852852,-500.0,0.0002994,5]
[404073046,1769785852862,-1000.00797627,0.0003,2]
[404073047,1769785852872,-220.97166632,0.00030068,5]
[404073048,1769785852881,-306.38897712,0.00030068,5]
[404073049,1769785852891,-505.12097817,0.00030068,5]
[404073050,1769785852900,-1774.63404526,0.00030084,2]
[404073051,1769785852912,-1225.7,0.00030137,2]
[404073052,1769785852923,-200.0,0.00030137,30]
[404073053,1769785852932,-200.0,0.00030137,30]
[404073054,1769785852943,-200.0,0.00030137,30]
[404073055,1769785852953,-200.0,0.00030137,30]
[404073056,1769785852963,-200.0,0.00030137,30]
[404073057,1769785852972,-200.0,0.00030137,30]
[404073058,1769785852981,-163.0,0.00030137,30]
[404073059,1769785852991,-162.0,0.000302,120]
[404073060,1769785853000,-200.0,0.00030604,2]
[404073061,1769785853010,-5800.0,0.00030701,2]
[404073062,1769785853019,-2000.0,0.000308,2]
[404073063,1769785853028,-1337.50524138,0.000308,7]
[404073064,1769785853038,-256612.4410324,0.00030801,2]
[404073065,1769785853048,-151.0,0.00030801,30]
[404073066,1769785853057,-151.0,0.00030801,30]
[404073067,1769785853067,-151.0,0.00030801,31]
[404073068,1769785853076,-154.046495,0.00030801,31]
[404073069,1769785853086,-293.643932,0.00030801,7]
[404073070,1769785853096,-293.643932,0.00030801,7]
[404073071,1769785853105,-293.643932,0.00030801,7]
[404073072,1769785853114,-293.643932,0.00030801,7]
[404073073,1769785853123,-363.468338,0.00030801,31]
[404073074,1769785853133,-363.468338,0.00030801,31]
[404073075,1769785853142,-363.468338,0.00030801,31]